Cogmind - Beta 14 @@@ ROGUE MODE // 2025.03.07 @ 21:23:57 Player: mix Result: Destroyed by EQ-BDS(j) with Overtuned Pulse Rifle Performance ------------- Evolutions (0) 0 Regions Visited (4) 800 Robots Destroyed (8) 40 Value Destroyed (102) 102 Prototype IDs (3) 60 Alien Tech Used (0) 0 Bonus (0) 0 TOTAL SCORE: 1002 Bonus ------- None Cogmind --------- Core Integrity 0/250 Matter 300/300 Energy 100/100 System Corruption 1% Temperature Cool (12) Movement Core (50) Location -8/Recycling Parts ------- > --- POWER (1) -------- (None) > --- PROPULSION (2) --- (None) > --- UTILITY (2) ------ Scrap Engine > --- WEAPON (2) ------- (None) > --- INVENTORY (5) ---- Subdweller Power Source Datajack Scrap Shield Fragment (48) Peak State ------------ > --- POWER ------------ Light Deuterium Engine > --- PROPULSION ------- Improved Treads Improved Treads > --- UTILITY ---------- Scrap Engine > --- WEAPON ----------- Ripper > --- INVENTORY -------- Subdweller Power Source Datajack Scrap Shield Fragment [Rating: 29] Favorites ----------- Power Light Deuterium Engine Engine Light Deuterium Engine Propulsion Improved Treads Treads Improved Treads Utility Hardened Heavy Armor Plating Device Scrap Engine Protection Hardened Heavy Armor Plating Weapon Ripper Energy Gun Lightning Gun Ballistic Gun Subdweller Machine Gun Launcher Grenade Launcher Slashing Weapon Ripper Build | -11 -10 -10 -10 -8 ------- Run | Yrd Mat Min Sub Rec Slots Evolved . | . . . . . Power . | . . . . . Propulsion . | . . . . . Utility . | . . . . . Weapon . | . . . . . Parts Attached 14 | 2 2 1 2 7 Power 1 | . . . . 1 Engine 1 | . . . . 1 Core . | . . . . . Reactor . | . . . . . Propulsion 6 | 2 2 . 1 1 Treads 6 | 2 2 . 1 1 Leg . | . . . . . Wheel . | . . . . . Hover . | . . . . . Flight . | . . . . . Utility 3 | . . . . 3 Device 1 | . . . . 1 Storage . | . . . . . Processor . | . . . . . Hackware . | . . . . . Protection 2 | . . . . 2 Artifact . | . . . . . Weapon 4 | . . 1 1 2 Energy Gun 1 | . . . . 1 Energy Cannon . | . . . . . Ballistic Gun 1 | . . . 1 . Ballistic Cannon . | . . . . . Launcher 1 | . . 1 . . Special Weapon . | . . . . . Impact Weapon . | . . . . . Slashing Weapon 1 | . . . . 1 Piercing Weapon . | . . . . . Special Melee Weapon . | . . . . . Unidentified Prototypes 1 | . . . . 1 Parts Lost 7 | . . . 3 4 Power 1 | . . . . 1 Propulsion 4 | . . . 2 2 Utility . | . . . . . Weapon 2 | . . . 1 1 Highest Loss Streak 4 | . . . 1 4 To Critical Strikes . | . . . . . Average Slot Usage (%) 60 | . 28 30 29 75 Engine 8 | . . . . 12 Treads 27 | . 28 28 25 28 Protection 8 | . . . . 12 Energy Gun 6 | . . . . 9 Slashing Weapon 8 | . . . . 12 Peak Build Rating 29 | 2 4 5 6 29 Average Rating 14 | 1 3 4 3 20 On Entrance 2 | . 2 4 5 3 Naked Turns . | . . . . . Heaviest Build 32 | . . 3 4 32 Greatest Support 46 | 3 3 3 46 46 Greatest Overweight (x) 1 | . . . 1 . Average Overweight (x) . | . . . . . Largest Inventory Capacity 5 | 5 5 5 5 5 Average Capacity 5 | 5 5 5 5 5 Most Carried 5 | 1 4 4 5 5 Average Carried 4 | . 2 3 4 4 Final Capacity 5 | 5 5 5 5 5 Final Carried 5 | . 4 3 5 3 Scrap Engine Consumption 2 | . . . . 2 Class Distribution -------------------- 100% | Mutant Dominant Class ---------------- Mutant | -10/Materials Mutant | -10/Mines Mutant | -10/Subcaves Mutant | -8/Recycling Resources | -11 -10 -10 -10 -8 ----------- Run | Yrd Mat Min Sub Rec Matter Collected 383 | 31 . 49 114 189 Remotely . | . . . . . Salvage Created 544 | . . 8 9 527 Parts 17 | . . 5 1 11 Haulers Intercepted . | . . . . . Recyclers Shooed . | . . . . . Parts Field Recycled . | . . . . . Retrieved Matter . | . . . . . Parts Self-Destructed 13 | . . . 13 . Prevented . | . . . . . Kills | -11 -10 -10 -10 -8 ------- Run | Yrd Mat Min Sub Rec Combat Hostiles Destroyed 1 | . . . 1 . AOE 1 | . . . 1 . Classes Destroyed 5 | . . 2 2 1 Builder 1 | . . 1 . . Tunneler 1 | . . 1 . . Recycler 5 | . . . . 5 Artisan 1 | . . . 1 . Subdweller 1 | . . . 1 . Best Kill Streak 4 | . . 2 1 4 Combat Bots Only 1 | . . . 1 . Max Kills in Single Turn 1 | . . 1 1 1 Gunslinging . | . . . . . Exploded 1 | . . . 1 . Melee . | . . . . . Uniques/NPCs Destroyed . | . . . . . Combat | -11 -10 -10 -10 -8 -------- Run | Yrd Mat Min Sub Rec Hostile Shots Fired 96 | . 1 . 67 28 Missed 34 | . . . 29 5 Damage Taken 1126 | . 18 . 609 499 Core 259 | . 18 . 178 63 Absorbed by Shields . | . . . . . Core Remaining (%) 100 | 100 . . . . Volleys Fired 18 | . . 3 8 7 Largest 1 | . . 1 1 1 Hottest 55 | . . 30 30 55 Shots Fired 18 | . . 3 8 7 Gun 7 | . . . . 7 Cannon . | . . . . . Launcher 11 | . . 3 8 . Special . | . . . . . Kinetic . | . . . . . Thermal . | . . . . . Explosive 11 | . . 3 8 . Electromagnetic 7 | . . . . 7 Robot Hit Streak 7 | . . . 4 7 Robot Miss Streak 2 | . . . 2 1 Penetration Max . | . . . . . Secondary Targets . | . . . . . Shots Hit Robots 12 | . . . 4 8 Core Hits 13 | . . 3 5 5 Critical Kills . | . . . . . Critical Parts Destroyed . | . . . . . Critical Strikes . | . . . . . Melee Attacks 5 | . . . . 5 Impact . | . . . . . Slashing 5 | . . . . 5 Piercing . | . . . . . Sneak Attacks 2 | . . . . 2 Combat Hostiles . | . . . . . Follow-up Attacks . | . . . . . Damage Inflicted 773 | . . 165 255 353 Guns 62 | . . . . 62 Cannons . | . . . . . Explosions 426 | . . 165 235 26 Melee 265 | . . . . 265 Ramming 20 | . . . 20 . Kinetic . | . . . . . Thermal 26 | . . . . 26 Explosive 400 | . . 165 235 . Electromagnetic 62 | . . . . 62 Impact . | . . . . . Slashing 265 | . . . . 265 Piercing . | . . . . . Highest Corruption 1 | . . . 1 1 Average Corruption 1 | . . . 1 1 Corruption Purged . | . . . . . Corruption Blocked . | . . . . . Effects 4 | . . . 1 3 Message Errors 1 | . . . . 1 Heat Flow Errors 1 | . . . . 1 Energy Discharges 2 | . . . 1 1 Overload Shots . | . . . . . Overflow Damage 45 | . . 7 . 38 Projectiles . | . . . . . Explosions 7 | . . 7 . . Melee 38 | . . . . 38 Knockbacks . | . . . . . Impact . | . . . . . Kinetic . | . . . . . Secondary . | . . . . . Self-Inflicted Damage 71 | . . . 71 . Shots 3 | . . . 3 . Rammed 8 | . . . 8 . Targets Rammed 8 | . . . 8 . Kicked . | . . . . . Crushed . | . . . . . Highest Temperature 249 | . . 5 249 180 Average Temperature 72 | . . 5 130 64 Received Heat Transfer 711 | . 9 . 426 276 Siege Activations . | . . . . . Robots Corrupted . | . . . . . Combat Hostiles . | . . . . . Parts Fried 1 | . . . . 1 Impact Corruptions . | . . . . . Robots Melted . | . . . . . Combat Hostiles . | . . . . . Parts Melted . | . . . . . Heat Transferred 50 | . . . . 50 Parts Sabotaged . | . . . . . Parts Stolen . | . . . . . Parts Stripped . | . . . . . Power Chain Reactions 1 | . . . . 1 Alert | -11 -10 -10 -10 -8 ------- Run | Yrd Mat Min Sub Rec Peak Influence 64 | . 45 35 . 64 Initial 17 | . . 17 . . Average 17 | . 3 21 . 18 Maximum Alert Level . | . . . . . Low Security (%) 100 | 100 100 100 . 100 Level 1 . | . . . . . Level 2 . | . . . . . Level 3 . | . . . . . Level 4 . | . . . . . Level 5 . | . . . . . High Security . | . . . . . Max Security . | . . . . . Squads Dispatched . | . . . . . Investigation . | . . . . . Extermination . | . . . . . Reinforcement . | . . . . . Assault . | . . . . . Garrison . | . . . . . Intercept . | . . . . . Searches Triggered . | . . . . . Construction Impeded . | . . . . . Haulers Reinforced . | . . . . . Active Scanning Responses . | . . . . . Cargo Convoy Interrupts . | . . . . . Stealth | -11 -10 -10 -10 -8 --------- Run | Yrd Mat Min Sub Rec Distress Signals . | . . . . . Communications Jammed . | . . . . . Distress Signals . | . . . . . Times Spotted 22 | . 3 . 16 3 Peak Tracking Total 7 | . 3 . 7 4 Tactical Retreats 3 | . 1 . 2 . Traps | -11 -10 -10 -10 -8 ------- Run | Yrd Mat Min Sub Rec Traps Triggered . | . . . . . Indirectly . | . . . . . Trap Hack Attempts . | . . . . . Triggered . | . . . . . Disarmed . | . . . . . Reprogrammed . | . . . . . Reused . | . . . . . Traps Extracted . | . . . . . Installed . | . . . . . Triggered . | . . . . . Machines | -11 -10 -10 -10 -8 ---------- Run | Yrd Mat Min Sub Rec Machines Disabled 2 | . . . . 2 Max in Single Turn 2 | . . . . 2 Machines Repaired . | . . . . . Machines Dismantled . | . . . . . Machines Sabotaged . | . . . . . Overloaded Fab Kills . | . . . . . Hacking | -11 -10 -10 -10 -8 --------- Run | Yrd Mat Min Sub Rec Machines Accessed 9 | . . . . 9 Terminals 5 | . . . . 5 Fabricators . | . . . . . Repair Stations . | . . . . . Recycling Units 2 | . . . . 2 Scanalyzers . | . . . . . Garrison Access . | . . . . . Total Hacks 40 | . . . . 40 Successful 34 | . . . . 34 Failed 6 | . . . . 6 Catastrophic . | . . . . . Database Lockouts . | . . . . . Manual 9 | . . . . 9 Terminals 8 | . . . . 8 Fabricators . | . . . . . Repair Stations . | . . . . . Recycling Units 6 | . . . . 6 Scanalyzers . | . . . . . Garrison Access . | . . . . . Terminal Hacks 27 | . . . . 27 Record 24 | . . . . 24 Prototype ID Bank 1 | . . . . 1 Release Object 2 | . . . . 2 Fabricator Hacks . | . . . . . Repair Station Hacks . | . . . . . Recycling Unit Hacks 2 | . . . . 2 Retrieve Components 2 | . . . . 2 Scanalyzer . | . . . . . Garrison Access Hacks . | . . . . . Unauthorized Hacks 5 | . . . . 5 Terminals 3 | . . . . 3 Botnet 3 | . . . . 3 Fabricators . | . . . . . Repair Stations . | . . . . . Recycling Units 2 | . . . . 2 Reject 2 | . . . . 2 Scanalyzers . | . . . . . Garrison Access . | . . . . . Data Cores Recovered . | . . . . . Used . | . . . . . Hacking Detections 4 | . . . . 4 Full Trace Events 1 | . . . . 1 Feedback Events . | . . . . . Feedback Blocked . | . . . . . Robot Schematics Acquired . | . . . . . Robots Built . | . . . . . Authchips . | . . . . . Time . | . . . . . Total Robot Build Rating . | . . . . . Part Schematics Acquired . | . . . . . Parts Built . | . . . . . Authchips . | . . . . . Time . | . . . . . Total Part Build Rating . | . . . . . Parts Repaired . | . . . . . Time . | . . . . . Parts Recycled . | . . . . . Recycled Matter . | . . . . . Retrieved Matter . | . . . . . Retrieved Components 4 | . . . . 4 Parts Scanalyzed . | . . . . . Part Schematics Acquired . | . . . . . Parts Damaged . | . . . . . Bothacking | -11 -10 -10 -10 -8 ------------ Run | Yrd Mat Min Sub Rec Used RIF Installer . | . . . . . Robots Hacked . | . . . . . Non-combat . | . . . . . Combat . | . . . . . Robot Hacks Applied . | . . . . . Relay Couplers Released . | . . . . . Fabnet Peak Effective % . | . . . . . Robots Rewired . | . . . . . Allies Hacked . | . . . . . Hacks Repelled . | . . . . . Allies | -11 -10 -10 -10 -8 -------- Run | Yrd Mat Min Sub Rec Total Allies 3 | . . 3 . . Largest Group 3 | . . 3 . . Highest-Rated Group 40 | . . 40 . . Highest-Rated Ally 16 | . . 16 . . Total Orders . | . . . . . Ally Attacks . | . . . . . Total Damage . | . . . . . Kills . | . . . . . Allies Corrupted . | . . . . . Allies Melted . | . . . . . Intel | -11 -10 -10 -10 -8 ------- Run | Yrd Mat Min Sub Rec Robot Analysis Total . | . . . . . Derelict Logs Recovered 1 | . . . 1 . Drone Launches . | . . . . . Drone Recoveries . | . . . . . Exploration | -11 -10 -10 -10 -8 ------------- Run | Yrd Mat Min Sub Rec Turns Passed 1477 | 15 92 46 330 994 Spaces Moved 1388 | 22 163 78 534 591 Core 788 | 22 163 78 525 . Treads 600 | . . . 9 591 Legs . | . . . . . Wheels . | . . . . . Hover . | . . . . . Flight . | . . . . . Fastest Speed 50 | 50 50 50 50 160 Average Speed 97 | 50 50 50 51 160 Slowest Speed 160 | 50 50 50 160 160 Overloaded Moves . | . . . . . Propulsion Burnouts . | . . . . . Robots Hopped . | . . . . . Cave-ins Triggered . | . . . . . Exploration Rate (%) 36 | 3 25 19 40 94 Regions Visited 4 Branch Regions 3 Pre-discovered Areas 1 | . . 1 . . Known Exits Taken . | . . . . . Unknown Exits Taken 4 | 1 1 1 1 . Scrap Searched 1 | . . 1 . . Spaces Dug . | . . . . . Terrain Destroyed 41 | . . 18 23 . Melee . | . . . . . Projectile . | . . . . . AOE 41 | . . 18 23 . Terrain Rammed . | . . . . . Walls Destroyed . | . . . . . Machines Disabled . | . . . . . Actions | -11 -10 -10 -10 -8 --------- Run | Yrd Mat Min Sub Rec Total 1481 | 25 172 81 575 628 Wait 22 | . . . 20 2 Move 1384 | 21 162 77 533 591 Hop . | . . . . . Pick Up 19 | 2 6 . 3 8 Fast Attach 2 | . . . 1 1 Attach 10 | 2 . 1 1 6 Detach 1 | . . . . 1 Swap 2 | . 2 . . . Drop 10 | . 2 . 1 7 Fire 18 | . . 3 8 7 Melee 5 | . . . . 5 Ram 3 | . . . 3 . Kick . | . . . . . Crush 5 | . . . 5 . Escape Stasis . | . . . . . Rewire . | . . . . . Trap . | . . . . . Miscellaneous . | . . . . . Route ------- -11/Scrapyard -10/Materials -10/Mines (discovered 2 exits: [*Mat] / [*Sub]) -10/Subcaves -8/Recycling (discovered 1 exit: [*Fac]) History --------- Turn | Location | Event 9 | -11/Scrapyard | Discovered new exit (range 15) 16 | -11/Scrapyard | Entered Materials 103 | -10/Materials | Discovered new exit (range 10) 108 | -10/Materials | Entered Mines 117 | -10/Mines | Assisted by bots powering up and referring to "LRC-V3" 126 | -10/Mines | Met a Derelict bent on vengeance 134 | -10/Mines | Discovered new exit (range 7) 136 | -10/Mines | Learned location of Storage (-8) 150 | -10/Mines | Discovered new exit (range 9) 154 | -10/Mines | Entered Subcaves 168 | -10/Subcaves | A swath of the cavern ceiling suddenly collapsed 187 | -10/Subcaves | Ambushed by angry Subdweller bent on revenge 225 | -10/Subcaves | Shifting Twisted Machinery released Sub. Power Source 239 | -10/Subcaves | Shifting Twisted Machinery released Sub. Machine Gun 308 | -10/Subcaves | Build established: Mutant 346 | -10/Subcaves | Core integrity fell below 50% 479 | -10/Subcaves | Discovered new exit (range 11) 484 | -10/Subcaves | Entered Recycling 1313 | -8/Recycling | Discovered new exit (range 5) 1356 | -8/Recycling | Scanned before Scraplab entrance 1383 | -8/Recycling | Entered Scraplab 1456 | -8/Recycling | Angered Scraplab inhabitants 1460 | -8/Recycling | Found Prototype Device 1461 | -8/Recycling | Identified Scrap Engine 1473 | -8/Recycling | Core integrity fell below 20% 1478 | -8/Recycling | Destroyed by EQ-BDS(j) with Overtuned Pulse Rifle Last Messages --------------- Accessing inventory controls... Prototype released... URGENT: Link to external system right away! Connecting with Scraplab SEP... Dropped Hrd. Heavy Armor Plating. Machine disabled. Prototype Device integrity failing. Acquired Prototype Device. Scraplab SEP disabled. EQ-BDS(j): "Defend the Scraplab!" Dropped Imp. Light Armor Plating. Identified Scrap Engine. Scrap Engine consumes Hrd. Heavy Armor Plating. Scrap Engine consumes Imp. Light Armor Plating. Ripper destroyed. 1Z-DAI(j) heat spikes uncontrollably. Lgt. Deuterium Engine destroyed. Supplies damaged. Imp. Treads destroyed. [Achievement: This Is Interesting...] Map ----- +----------------------------------------------------+ | | | | | | | | | | | | | | | | | | | | | | | | | | | | | | | | | | | | | | | | | | | | | ????????????????#########??#?????????????????????? | | ????????????????# """"""#? #?????????????????????? | | ????????????????# " ## #?????????????????????? | | ??????????####### cj @ #?????????????????????? | | ?????????## j/ #?????????????????????? | | ?????????# #####j #?????????????????????? | | ?????????## #???# [ c ""#?????????????????????? | | ??????????# #???#"& "& X ""#?????????????????????? | | ??????????# #???#"""""""" #?????????????????????? | | ???????#####################?????????????????????? | | ???????# / #?????????????????????????????????? | | ???????# #?????????????????????????????????? | | ???????# #?????????????????????????????????? | | ???????# #?????????????????????????????????? | | ???????####+####?????????????????????????????????? | | ??????????# #????####################????????????? | | ########### #????#! = #????????????? | | #????# % = ] #??########### | | #############????#! =! = !!! #??#! | | ?????????????????# / #??# | | ?????????????????# ! = #??# !! | | ??#??????????????# ! #??# !! | | # #########################+############ ! ! ! | | # ! | | + ! ! | | # ! | | ###### #######+###### # | | ?????# ## #??# # | +----------------------------------------------------+ Best States ------------- Heat Dissipation 25 Energy Generation 14 Energy Capacity 140 Matter Stores 300 Matter Capacity 300 Sight Range 16 Terrain Scan Density 10 Armor Coverage 600 Evasion (%) 50 Recoil Reduction 2 Item Schematics ----------------- None Robot Schematics ------------------ None Fabricated ------------ Nothing Alien Tech Used ----------------- None Achievements -------------- This Is Interesting... Challenges ------------ None Game ------ Seed ArmoredFactoryFilter Manual? 0 Play Time 00:21:07 Cumulative 64.1 hours Start 2025.03.07 @ 21:01:43 End 2025.03.07 @ 21:23:57 Sessions 1 Manual Loads 0 Difficulty Rogue Special Mode None Game No. 93 Rogue 79 Adventurer 14 Explorer 0 Win Type - Total 0 Types 0/0/0/0/0/0/0/0/0 Lore% 25 Gallery% 44 Achievement% 41 Wizard Run 0 Options --------- Layout 1 ASCII 0 Keyboard 0 Movement Mouse Keybinds 0 Fullscreen 1 Font 24/Smallcaps Map View 50x35 Zoom Use 0% Tactical HUD 0 Map Filters NONE Filters NONE Steam 1 RUN: 3ae1653f-a091-490b-abf0-73f2a094dbb9